[Event "GER-ch Youth U14W 2020"]
[Site "Willingen"]
[Date "2020.10.20"]
[Round "1.7"]
[White "Werner, Rosalie"]
[Black "Sinner, Joselyne"]
[Result "1-0"]
[ECO "C50"]
[WhiteElo "1688"]
[BlackElo "1414"]
[Annotator "NA RC"]
[PlyCount "73"]
[EventDate "2020.10.20"]
[EventType "swiss"]
[EventRounds "7"]
[EventCountry "GER"]
[SourceTitle "playchess.com"]
[Source "ChessBase"]
[SourceQuality "1"]
[TimeControl "40/5400+30:1800+30"]

1. e4 {[%emt 0:00:00]} e5 {[%emt 0:00:00]} 2. Nf3 {[%emt 0:00:00]} Nc6 {[%emt 0:00:00]} 3. Bc4 {[%emt 0:00:00]} Nf6 {[%emt 0:00:00]} 4. d3 {[%emt 0:00:00]} Bc5 {[%emt 0:00:00]} 5. c3 {[%emt 0:00:05]} d6 {[%emt 0:01:25]} 6. h3 {[%emt 0:00:10]} h6 {[%emt 0:02:07]} 7. Bb3 {[%emt 0:00:35]} a6 {[%emt 0:03:46]} 8. Nbd2 {[%emt 0:00:12]} Ba7 {[%emt 0:05:20]} 9. Nf1 {[%emt 0:00:17]} Be6 {[%emt 0:07:59]} 10. Ng3 {[%emt 0:00:41]} g6 {[%emt 0:11:29]} 11. O-O {[%emt 0:11:37]} Qe7 {[%emt 0:04:34]} 12. Re1 {[%emt 0:04:54]} O-O-O {[%emt 0:16:59]} 13. Be3 {[%emt 0:13:57]} Bxe3 {[%emt 0:05:22]} 14. Rxe3 {[%emt 0:00:20]} Nd7 {[%emt 0:08:49]} 15. d4 {[%emt 0:08:53]} Bxb3 {[%emt 0:03:30]} 16. Qxb3 {[%emt 0:14:21]} Rdf8 {[%emt 0:02:58]} 17. Qc2 {[%emt 0:19:58]} f6 {[%emt 0:05:54]} 18. d5 {[%emt 0:04:26]} Nd8 {[%emt 0:00:29]} 19. b4 {[%emt 0:02:42]} Qf7 {[%emt 0:02:59]} 20. Nh4 {[%emt 0:01:33]} Rhg8 {[%emt 0:03:58]} 21. c4 {[%emt 0:05:44]} Qe7 {[%emt 0:01:09]} 22. Nf3 {[%emt 0:02:15]} Rg7 {[%emt 0:03:41]} 23. a4 {[%emt 0:01:40]} c6 {[%emt 0:03:13]} 24. b5 {[%emt 0:03:15]} c5 {[%emt 0:02:21]} 25. bxa6 {[%emt 0:01:01]} bxa6 {[%emt 0:00:27]} 26. a5 {[%emt 0:01:28]} Nb8 {[%emt 0:02:09]} 27. Rb1 {[%emt 0:00:25]} Qa7 {[%emt 0:00:47]} 28. Reb3 {[%emt 0:00:13]} Rb7 {[%emt 0:00:26]} 29. Rb6 {[%emt 0:01:11]} Rxb6 {[%emt 0:01:14]} 30. Rxb6 {[%emt 0:00:07]} Nb7 {[%emt 0:00:28]} 31. Qa4 {[%emt 0:00:57]} Kd8 {[%emt 0:01:12]} 32. Nh4 {[%emt 0:01:17]} Rg8 {[%emt 0:00:38]} 33. Ne2 {[%emt 0:01:07]} Nd7 {[%emt 0:00:34]} 34. Rb1 {[%emt 0:00:27]} Ke7 {[%emt 0:00:24]} 35. Nc3 {[%emt 0:00:29]} Kf7 {[%emt 0:00:27]} 36. Qxd7+ {[%emt 0:00:08]} Kf8 {[%emt 0:00:13]} 37. Rxb7 {[%emt 0:00:18]} 1-0

[Event "GER-ch Youth U14W 2020"]
[Site "Willingen"]
[Date "2020.10.20"]
[Round "1.8"]
[White "Schulz, Hannah"]
[Black "Fischer, Darja"]
[Result "1-0"]
[ECO "B28"]
[WhiteElo "1589"]
[BlackElo "1598"]
[Annotator "NA RC"]
[PlyCount "155"]
[EventDate "2020.10.20"]
[EventType "swiss"]
[EventRounds "7"]
[EventCountry "GER"]
[SourceTitle "playchess.com"]
[Source "ChessBase"]
[SourceQuality "1"]
[TimeControl "40/5400+30:1800+30"]

1. e4 {[%emt 0:00:00]} c5 {[%emt 0:00:00]} 2. Nf3 {[%emt 0:00:00]} a6 {[%emt 0:00:00]} 3. c3 {[%emt 0:00:00]} d5 {[%emt 0:00:00]} 4. exd5 {[%emt 0:00:00]} Qxd5 {[%emt 0:00:00]} 5. d4 {[%emt 0:00:01]} e6 {[%emt 0:00:08]} 6. g3 {[%emt 0:00:12]} Nf6 {[%emt 0:01:06]} 7. Bg2 {[%emt 0:00:34]} Nc6 {[%emt 0:02:07]} 8. O-O {[%emt 0:00:15]} Qd8 {[%emt 0:03:07]} 9. Ne5 {[%emt 0:02:20]} Nxe5 {[%emt 0:05:48]} 10. dxe5 {[%emt 0:00:20]} Nd7 {[%emt 0:02:23]} 11. f4 {[%emt 0:01:09]} Be7 {[%emt 0:02:51]} 12. Nd2 {[%emt 0:01:01]} O-O {[%emt 0:03:45]} 13. Ne4 {[%emt 0:01:30]} Qc7 {[%emt 0:08:53]} 14. Be3 {[%emt 0:17:44]} Rd8 {[%emt 0:06:19]} 15. Qc2 {[%emt 0:06:26]} Nb6 {[%emt 0:05:48]} 16. Rad1 {[%emt 0:00:41]} Nd5 17. Bf2 {[%emt 0:02:51]} b6 {[%emt 0:07:16]} 18. c4 {[%emt 0:01:19]} Nb4 {[%emt 0:00:29]} 19. Qb3 {[%emt 0:01:57]} Bb7 {[%emt 0:02:08]} 20. a3 {[%emt 0:00:34]} Nc6 {[%emt 0:00:18]} 21. Rxd8+ {[%emt 0:15:31]} Rxd8 {[%emt 0:03:51]} 22. Rd1 {[%emt 0:00:32]} Nd4 {[%emt 0:03:18]} 23. Bxd4 {[%emt 0:02:07]} Rxd4 {[%emt 0:00:15]} 24. Rxd4 {[%emt 0:00:25]} cxd4 {[%emt 0:00:05]} 25. Qd3 {[%emt 0:02:10]} Qd7 {[%emt 0:03:05]} 26. b4 {[%emt 0:00:57]} h6 {[%emt 0:03:52]} 27. Nd2 {[%emt 0:06:50]} Bxg2 {[%emt 0:07:38]} 28. Kxg2 {[%emt 0:00:38]} a5 {[%emt 0:00:14]} 29. b5 {[%emt 0:02:48]} Bc5 {[%emt 0:02:33]} 30. a4 {[%emt 0:00:47]} Qe7 {[%emt 0:02:13]} 31. Nb3 {[%emt 0:02:13]} Qb7+ {[%emt 0:04:37]} 32. Qf3 {[%emt 0:01:27]} Qd7 {[%emt 0:03:21]} 33. Qc6 {[%emt 0:07:50]} Qd8 {[%emt 0:00:41]} 34. Nxc5 {[%emt 0:02:22]} bxc5 {[%emt 0:00:06]} 35. Qd6 {[%emt 0:00:36]} Qa8+ {[%emt 0:01:03]} 36. Qc6 {[%emt 0:01:57]} Qd8 {[%emt 0:02:39]} 37. Kf2 {[%emt 0:03:36]} d3 {[%emt 0:04:32]} 38. Qd6 {[%emt 0:00:31]} Qa8 {[%emt 0:00:06]} 39. Qxd3 {[%emt 0:00:27]} Qh1 {[%emt 0:00:27]} 40. Qf3 {[%emt 0:05:03]} Qb1 {[%emt 0:01:18]} 41. Qa8+ {[%emt 0:34:09]} Kh7 {[%emt 0:30:18]} 42. Qxa5 {[%emt 0:00:17]} Qc2+ {[%emt 0:00:16]} 43. Ke3 {[%emt 0:02:22]} Qxc4 {[%emt 0:01:05]} 44. b6 {[%emt 0:03:06]} Qb3+ {[%emt 0:03:54]} 45. Kd2 {[%emt 0:02:46]} c4 {[%emt 0:00:57]} 46. Qc3 {[%emt 0:00:24]} Qxb6 {[%emt 0:01:21]} 47. Qxc4 {[%emt 0:00:22]} Qf2+ {[%emt 0:00:19]} 48. Qe2 {[%emt 0:00:21]} Qb6 {[%emt 0:00:26]} 49. Qb5 {[%emt 0:00:47]} Qa7 {[%emt 0:00:41]} 50. a5 {[%emt 0:00:42]} g6 {[%emt 0:00:27]} 51. a6 {[%emt 0:01:28]} Qd4+ {[%emt 0:00:33]} 52. Qd3 {[%emt 0:00:00]} Qb2+ {[%emt 0:00:00]} 53. Qc2 {[%emt 0:00:00]} Qd4+ {[%emt 0:00:00]} 54. Ke2 {[%emt 0:00:00]} Qg1 {[%emt 0:00:00]} 55. Kd3 {[%emt 0:00:00]} Qf1+ {[%emt 0:00:00]} 56. Qe2 {[%emt 0:00:00]} Qb1+ {[%emt 0:00:00]} 57. Kc4 {[%emt 0:00:00]} Qc1+ {[%emt 0:00:00]} 58. Kb5 {[%emt 0:00:00]} Qb1+ {[%emt 0:00:00]} 59. Kc6 {[%emt 0:00:00]} Qh1+ {[%emt 0:00:00]} 60. Kc7 {[%emt 0:00:00]} Qd5 {[%emt 0:00:00]} 61. Qe3 {[%emt 0:00:00]} Qc4+ {[%emt 0:00:00]} 62. Kb7 {[%emt 0:00:00]} Qb5+ {[%emt 0:00:00]} 63. Qb6 {[%emt 0:00:00]} Qd7+ {[%emt 0:00:00]} 64. Qc7 {[%emt 0:00:00]} Qd5+ {[%emt 0:00:00]} 65. Kb8 {[%emt 0:00:00]} Qb5+ {[%emt 0:00:00]} 66. Qb7 {[%emt 0:00:00]} Qe8+ {[%emt 0:00:00]} 67. Kc7 {[%emt 0:00:00]} Qe7+ {[%emt 0:00:00]} 68. Kc6 {[%emt 0:00:00]} Qe8+ {[%emt 0:00:00]} 69. Kd6 {[%emt 0:00:00]} Qd8+ {[%emt 0:00:00]} 70. Qd7 {[%emt 0:00:00]} Qf8+ {[%emt 0:00:00]} 71. Kc7 {[%emt 0:00:00]} Qc5+ {[%emt 0:00:46]} 72. Kd8 {[%emt 0:00:00]} Qb6+ {[%emt 0:01:31]} 73. Ke8 {[%emt 0:00:00]} Kg7 {[%emt 0:04:12]} 74. Qxf7+ {[%emt 0:00:00]} Kh8 {[%emt 0:00:02]} 75. Qf6+ {[%emt 0:00:15]} Kh7 {[%emt 0:00:06]} 76. Kf7 {[%emt 0:01:02]} Qc7+ {[%emt 0:00:28]} 77. Qe7 {[%emt 0:00:08]} Qc6 {[%emt 0:00:12]} 78. Kf6+ {[%emt 0:00:11]} 1-0

[Event "GER-ch Youth U14W 2020"]
[Site "Willingen"]
[Date "2020.10.20"]
[Round "1.9"]
[White "Buchholz, Maja"]
[Black "Alferova, Emily"]
[Result "1/2-1/2"]
[ECO "A11"]
[WhiteElo "1628"]
[BlackElo "1329"]
[Annotator "NA RC"]
[PlyCount "72"]
[EventDate "2020.10.20"]
[EventType "swiss"]
[EventRounds "7"]
[EventCountry "GER"]
[SourceTitle "playchess.com"]
[Source "ChessBase"]
[SourceQuality "1"]
[TimeControl "40/5400+30:1800+30"]

1. c4 {[%emt 0:00:00]} c6 {[%emt 0:00:00]} 2. g3 {[%emt 0:00:00]} d5 {[%emt 0:00:00]} 3. Bg2 {[%emt 0:00:00]} Nf6 {[%emt 0:00:00]} 4. Nf3 {[%emt 0:00:00]} Bf5 {[%emt 0:00:00]} 5. O-O {[%emt 0:00:06]} e6 {[%emt 0:00:38]} 6. b3 {[%emt 0:00:36]} h6 {[%emt 0:00:58]} 7. Bb2 {[%emt 0:00:31]} Be7 {[%emt 0:00:49]} 8. Na3 {[%emt 0:03:59]} O-O {[%emt 0:04:58]} 9. d3 {[%emt 0:02:53]} Nbd7 {[%emt 0:06:56]} 10. Nc2 {[%emt 0:03:22]} a5 {[%emt 0:03:59]} 11. a3 {[%emt 0:00:57]} Qb6 {[%emt 0:05:00]} 12. Rb1 {[%emt 0:02:49]} Rfd8 {[%emt 0:10:24]} 13. Nd2 {[%emt 0:08:46]} Bh7 {[%emt 0:07:25]} 14. b4 {[%emt 0:02:28]} Qc7 {[%emt 0:06:42]} 15. c5 {[%emt 0:06:49]} axb4 {[%emt 0:03:47]} 16. axb4 {[%emt 0:00:26]} b6 {[%emt 0:02:53]} 17. d4 {[%emt 0:06:06]} Ra4 {[%emt 0:06:36]} 18. Ra1 {[%emt 0:06:08]} Bxc2 {[%emt 0:02:45]} 19. Qxc2 {[%emt 0:00:11]} Rxb4 {[%emt 0:01:51]} 20. Ba3 {[%emt 0:02:37]} Rb5 {[%emt 0:04:08]} 21. cxb6 {[%emt 0:01:59]} Nxb6 {[%emt 0:01:13]} 22. Bxe7 {[%emt 0:00:38]} Qxe7 {[%emt 0:00:07]} 23. Qxc6 {[%emt 0:00:59]} Rb2 {[%emt 0:01:18]} 24. Qc3 {[%emt 0:02:21]} Qb4 {[%emt 0:02:24]} 25. Qxb4 {[%emt 0:01:52]} Rxb4 {[%emt 0:00:17]} 26. Nf3 {[%emt 0:00:27]} g5 {[%emt 0:01:51]} 27. h3 {[%emt 0:01:01]} Nc4 {[%emt 0:01:32]} 28. e3 {[%emt 0:01:20]} Rdb8 {[%emt 0:01:54]} 29. Rfc1 {[%emt 0:01:44]} Rb2 {[%emt 0:03:35]} 30. Bf1 {[%emt 0:05:11]} Nd2 {[%emt 0:01:55]} 31. Ne5 {[%emt 0:04:29]} Nb3 {[%emt 0:03:56]} 32. Nc6 {[%emt 0:06:35]} Nxa1 {[%emt 0:00:19]} 33. Nxb8 {[%emt 0:00:13]} Rxb8 {[%emt 0:00:38]} 34. Rxa1 {[%emt 0:00:06]} Rb2 {[%emt 0:00:32]} 35. Bg2 {[%emt 0:01:59]} Kg7 {[%emt 0:00:52]} 36. Bf3 {[%emt 0:00:46]} Rc2 {[%emt 0:01:29]} 1/2-1/2

[Event "GER-ch Youth U14W 2020"]
[Site "Willingen"]
[Date "2020.10.20"]
[Round "1.10"]
[White "Wörz, Ann-Sophie"]
[Black "Roncea, Andrea-Alexandra"]
[Result "1-0"]
[ECO "A14"]
[WhiteElo "1473"]
[BlackElo "1644"]
[Annotator "NA RC"]
[PlyCount "73"]
[EventDate "2020.10.20"]
[EventType "swiss"]
[EventRounds "7"]
[EventCountry "GER"]
[SourceTitle "playchess.com"]
[Source "ChessBase"]
[SourceQuality "1"]
[TimeControl "40/5400+30:1800+30"]

1. c4 {[%emt 0:00:00]} e6 {[%emt 0:00:00]} 2. g3 {[%emt 0:00:00]} d5 {[%emt 0:00:00]} 3. Bg2 {[%emt 0:00:00]} Nf6 {[%emt 0:00:20]} 4. Nf3 {[%emt 0:00:04]} Be7 {[%emt 0:00:55]} 5. O-O {[%emt 0:00:35]} O-O {[%emt 0:00:46]} 6. b3 {[%emt 0:02:13]} b6 {[%emt 0:01:17]} 7. Bb2 {[%emt 0:01:23]} Bb7 {[%emt 0:02:05]} 8. d4 {[%emt 0:03:09]} Na6 {[%emt 0:02:57]} 9. Nc3 {[%emt 0:03:52]} c5 {[%emt 0:02:06]} 10. cxd5 {[%emt 0:00:50]} exd5 {[%emt 0:07:21]} 11. Rc1 {[%emt 0:04:36]} Ne4 {[%emt 0:07:03]} 12. Nxe4 {[%emt 0:04:14]} dxe4 {[%emt 0:00:31]} 13. Nd2 {[%emt 0:01:38]} f5 {[%emt 0:07:29]} 14. Nc4 {[%emt 0:06:12]} Bf6 {[%emt 0:05:15]} 15. Ne5 {[%emt 0:06:44]} Re8 {[%emt 0:08:14]} 16. f4 {[%emt 0:10:40]} exf3 {[%emt 0:12:06]} 17. Bxf3 {[%emt 0:05:39]} Bxf3 {[%emt 0:01:02]} 18. exf3 {[%emt 0:01:43]} Qd5 {[%emt 0:07:54]} 19. f4 {[%emt 0:06:18]} Rad8 {[%emt 0:05:46]} 20. dxc5 {[%emt 0:04:13]} Nxc5 {[%emt 0:03:16]} 21. Qc2 {[%emt 0:07:14]} Qe4 {[%emt 0:07:13]} 22. Ba1 {[%emt 0:04:11]} Qe3+ {[%emt 0:03:41]} 23. Kh1 {[%emt 0:04:25]} Bxe5 {[%emt 0:09:58]} 24. Qc4+ {[%emt 0:09:19]} Ne6 {[%emt 0:01:31]} 25. Rce1 {[%emt 0:06:10]} Qd2 {[%emt 0:02:12]} 26. Rxe5 {[%emt 0:01:20]} Rd6 {[%emt 0:01:03]} 27. Rfe1 {[%emt 0:00:28]} Kf7 {[%emt 0:00:38]} 28. Rxf5+ {[%emt 0:00:51]} Kg6 {[%emt 0:00:18]} 29. Rfe5 {[%emt 0:01:35]} Nxf4 {[%emt 0:00:40]} 30. Qe4+ {[%emt 0:00:48]} Kh6 {[%emt 0:00:29]} 31. Rxe8 {[%emt 0:00:49]} Nh5 {[%emt 0:00:50]} 32. Re6+ {[%emt 0:03:13]} Rxe6 {[%emt 0:00:07]} 33. Qxe6+ {[%emt 0:00:08]} g6 {[%emt 0:00:03]} 34. Qe3+ {[%emt 0:00:24]} Qxe3 {[%emt 0:00:14]} 35. Rxe3 {[%emt 0:00:01]} a5 {[%emt 0:00:40]} 36. Re6 {[%emt 0:00:17]} b5 {[%emt 0:00:10]} 37. Ra6 {[%emt 0:00:34]} 1-0

[Event "GER-ch Youth U14W 2020"]
[Site "Willingen"]
[Date "2020.10.20"]
[Round "1.13"]
[White "Cordes, Jule"]
[Black "Foos, Vanessa"]
[Result "1-0"]
[ECO "D31"]
[WhiteElo "1718"]
[BlackElo "1328"]
[Annotator "NA RC"]
[PlyCount "77"]
[EventDate "2020.10.20"]
[EventType "swiss"]
[EventRounds "7"]
[EventCountry "GER"]
[SourceTitle "playchess.com"]
[Source "ChessBase"]
[SourceQuality "1"]
[TimeControl "40/5400+30:1800+30"]

1. d4 {[%emt 0:00:00]} d5 {[%emt 0:00:00]} 2. c4 {[%emt 0:00:00]} e6 {[%emt 0:00:00]} 3. Nc3 {[%emt 0:00:00]} c6 {[%emt 0:00:00]} 4. Nf3 {[%emt 0:00:06]} f5 {[%emt 0:00:16]} 5. Bf4 {[%emt 0:00:48]} Nf6 {[%emt 0:00:16]} 6. e3 {[%emt 0:00:36]} Be7 {[%emt 0:00:26]} 7. Be2 {[%emt 0:02:34]} O-O {[%emt 0:00:21]} 8. h3 {[%emt 0:02:10]} Ne4 {[%emt 0:07:02]} 9. O-O {[%emt 0:05:37]} Bd7 {[%emt 0:09:46]} 10. Qc2 {[%emt 0:08:35]} Be8 {[%emt 0:09:30]} 11. c5 {[%emt 0:13:08]} Bh5 {[%emt 0:14:19]} 12. b4 {[%emt 0:09:33]} Nd7 {[%emt 0:07:52]} 13. a4 {[%emt 0:06:46]} Rb8 {[%emt 0:05:31]} 14. Bxb8 {[%emt 0:09:06]} Qxb8 {[%emt 0:01:38]} 15. b5 {[%emt 0:01:08]} f4 {[%emt 0:09:18]} 16. Nxe4 {[%emt 0:04:13]} dxe4 {[%emt 0:00:33]} 17. Qxe4 {[%emt 0:02:38]} Rf6 {[%emt 0:04:56]} 18. exf4 {[%emt 0:02:01]} Qxf4 {[%emt 0:03:59]} 19. Qxf4 {[%emt 0:00:53]} Rxf4 {[%emt 0:00:09]} 20. bxc6 {[%emt 0:10:51]} bxc6 {[%emt 0:00:34]} 21. Rfd1 {[%emt 0:07:06]} Bg6 {[%emt 0:12:43]} 22. Ra2 {[%emt 0:01:59]} Bf6 {[%emt 0:02:48]} 23. Rad2 {[%emt 0:01:29]} a5 {[%emt 0:02:38]} 24. g3 {[%emt 0:04:35]} Rf5 {[%emt 0:01:34]} 25. Nh2 {[%emt 0:00:33]} Bg5 {[%emt 0:00:42]} 26. Rb2 {[%emt 0:03:22]} Rf7 {[%emt 0:00:42]} 27. Bd3 {[%emt 0:00:28]} Bxd3 {[%emt 0:00:36]} 28. Rxd3 {[%emt 0:00:01]} Bf6 {[%emt 0:00:24]} 29. Ng4 {[%emt 0:00:20]} Bd8 {[%emt 0:00:42]} 30. f4 {[%emt 0:01:08]} Kf8 {[%emt 0:00:18]} 31. Ne5 {[%emt 0:00:46]} Nxe5 {[%emt 0:01:37]} 32. fxe5 {[%emt 0:00:19]} Ke8 {[%emt 0:00:10]} 33. Rb8 {[%emt 0:01:01]} Rd7 {[%emt 0:00:34]} 34. Kf2 {[%emt 0:00:17]} Kf7 {[%emt 0:00:07]} 35. Ke3 {[%emt 0:00:40]} Kg6 {[%emt 0:00:06]} 36. Rc8 {[%emt 0:00:41]} Bg5+ {[%emt 0:03:14]} 37. Ke2 {[%emt 0:00:36]} Kf5 {[%emt 0:00:53]} 38. Rxc6 {[%emt 0:00:47]} Bd8 {[%emt 0:00:59]} 39. Rd6 {[%emt 0:00:15]} 1-0

[Event "GER-ch Youth U14W 2020"]
[Site "Willingen"]
[Date "2020.10.21"]
[Round "2.1"]
[White "Prinzen, Siri Marleen"]
[Black "Zhou, Lepu Coco"]
[Result "0-1"]
[ECO "C50"]
[WhiteElo "1712"]
[BlackElo "1872"]
[Annotator "NA RC"]
[PlyCount "96"]
[EventDate "2020.10.20"]
[EventType "swiss"]
[EventRounds "7"]
[EventCountry "GER"]
[SourceTitle "playchess.com"]
[Source "ChessBase"]
[SourceQuality "1"]
[TimeControl "40/5400+30:1800+30"]

{[%evp 8,96,39,27,22,32767,32767,32767,20,32767,32767,32767,32767,32767,32767,0,16,-2,10,0,1,8,17,8,23,13,36,35,35,-23,-9,-93,-82,-91,84,75,83,52,58,45,52,57,117,122,239,238,32767,265,425,477,432,394,335,135,131,32767,32767,127,138,6,5,32767,0,32767,32767,32767,-83,-252,-260,-284,-242,-424,-419,-358,-525,32767,32767,32767,32767,-391,-420,32767,32767,32767,-516,-606,-836,32767,32767,-1908,-29976]} 1. e4 {[%emt 0:00:00]} e5 {[%emt 0:00:00]} 2. Nf3 {[%emt 0:00:00]} Nc6 {[%emt 0:00:00]} 3. Bc4 {[%emt 0:00:00]} Be7 {[%emt 0:00:12]} 4. O-O {[%emt 0:00:15]} d6 {[%emt 0:00:21]} 5. c3 {[%emt 0:02:17]} Nf6 {[%emt 0:01:17]} 6. Re1 {[%emt 0:02:05]} O-O {[%emt 0:00:44]} 7. d3 {[%emt 0:02:27]} Na5 {[%emt 0:00:39]} 8. Bb5 {[%emt 0:03:08]} a6 {[%emt 0:00:18]} 9. Ba4 {[%emt 0:00:11]} b5 {[%emt 0:00:06]} 10. Bc2 {[%emt 0:00:06]} c5 {[%emt 0:00:07]} 11. d4 {[%emt 0:10:56]} Qc7 {[%emt 0:03:13]} 12. Nbd2 {[%emt 0:06:05]} Bg4 {[%emt 0:03:35] C90: Closed Ruy Lopez with 7...d6: Early deviations.} 13. d5 {[%emt 0:03:23] [#]} c4 $146 {[%emt 0:02:28]} ({Predecessor:} 13... Ne8 14. Nf1 g6 15. Bh6 Ng7 16. Ne3 Bd7 17. Qd2 Nb7 18. Ng5 Nd8 19. Rad1 f6 20. Ne6 Ndxe6 21. dxe6 Bxe6 {0-1 (52) Kestlane,H (1795)-Macura,E (1953) Velke Losiny 2013}) 14. Nf1 {[%emt 0:02:17]} Nb7 {[%emt 0:04:28]} 15. h3 {[%emt 0:00:39]} Bc8 {[%emt 0:03:04]} 16. Be3 {[%emt 0:12:38]} a5 {[%emt 0:01:54]} 17. a4 {[%emt 0:06:37]} b4 {[%emt 0:01:33]} 18. cxb4 {[%emt 0:02:21]} ({White should play} 18. N3d2 $14) 18... axb4 {[%emt 0:00:14]} 19. Qc1 {[%emt 0:01:59]} (19. Qd2 $11) 19... Nc5 {[%emt 0:04:23]} 20. Bxc5 {[%emt 0:01:58]} dxc5 $2 {[%emt 0:01:48]} (20... Qxc5 $17 {and life is bright.} 21. Qe3 Ra5) 21. Ne3 {[%emt 0:02:51]} Ba6 {[%emt 0:02:40]} 22. Nf5 {[%emt 0:03:03]} Ne8 {[%emt 0:00:52]} 23. Nxe7+ {[%emt 0:02:05]} Qxe7 {[%emt 0:00:10]} 24. Qe3 {[%emt 0:00:14]} b3 {[%emt 0:02:18]} ({Black should try} 24... f6 $14) 25. Bd1 {[%emt 0:00:15]} Bb5 {[%emt 0:00:20]} (25... Nd6 $16 {is a better defense.}) 26. Bxb3 $1 {[%emt 0:03:45]} cxb3 {[%emt 0:01:56]} 27. axb5 {[%emt 0:00:06]} Rxa1 {[%emt 0:02:30]} (27... Rb8 $142 28. Qxb3 Nd6) 28. Rxa1 {[%emt 0:00:02]} c4 {[%emt 0:05:45]} 29. Qc3 {[%emt 0:02:19]} Nd6 {[%emt 0:01:42]} 30. Qxe5 $2 {[%emt 0:03:47]} (30. Qb4 $18 {and White stays clearly on top.}) 30... Qxe5 {[%emt 0:00:15]} 31. Nxe5 {[%emt 0:00:01]} f6 {[%emt 0:00:20]} 32. Nc6 {[%emt 0:04:28]} Nxb5 {[%emt 0:02:13]} 33. Na5 {[%emt 0:04:34]} (33. Ra4 $16 c3 34. bxc3) 33... Nd6 {[%emt 0:03:00]} 34. Nc6 {[%emt 0:11:02]} Nxe4 {[%emt 0:00:43]} 35. Rc1 {[%emt 0:02:04]} c3 {[%emt 0:01:17]} 36. Nd4 {[%emt 0:03:36]} Rd8 $2 {[%emt 0:09:51]} ({Weaker is} 36... cxb2 37. Rb1 $17) (36... Ra8 $19 {has better winning chances.} 37. d6 Kf7) 37. f3 $2 {[%emt 0:02:09]} (37. Nxb3 $17 cxb2 38. Rb1) 37... cxb2 {[%emt 0:01:22]} 38. Rb1 {[%emt 0:00:26]} Rxd5 {[%emt 0:00:10]} 39. fxe4 {[%emt 0:01:33]} (39. Nxb3 $142 Rb5 40. fxe4 Rxb3 41. Kf2) 39... Rxd4 {[%emt 0:00:13]} 40. Rxb2 {[%emt 0:00:06]} Rd3 {[%emt 0:00:55]} 41. Kf2 {[%emt 0:31:29]} Rc3 {[%emt 0:30:16]} 42. Ke2 {[%emt 0:00:45]} Kf7 {[%emt 0:00:14]} 43. Kd2 {[%emt 0:00:24]} Rg3 {[%emt 0:00:08]} 44. Kc1 {[%emt 0:00:40]} Ke6 {[%emt 0:00:22]} 45. Re2 {[%emt 0:00:00]} Ke5 {[%emt 0:00:00]} 46. Kd1 {[%emt 0:00:00]} Rc3 {[%emt 0:00:00]} 47. h4 {[%emt 0:00:00]} Kd4 {[%emt 0:00:00]} 48. g4 $19 {[%emt 0:00:00]} Re3 {[%emt 0:00:00]} 0-1

[Event "GER-ch Youth U14W 2020"]
[Site "Willingen"]
[Date "2020.10.21"]
[Round "2.2"]
[White "Bildat, Emilia"]
[Black "Cordes, Jule"]
[Result "1-0"]
[ECO "A20"]
[WhiteElo "1704"]
[BlackElo "1718"]
[Annotator "NA RC"]
[PlyCount "61"]
[EventDate "2020.10.20"]
[EventType "swiss"]
[EventRounds "7"]
[EventCountry "GER"]
[SourceTitle "playchess.com"]
[Source "ChessBase"]
[SourceQuality "1"]
[TimeControl "40/5400+30:1800+30"]

1. c4 {[%emt 0:00:00]} e5 {[%emt 0:00:00]} 2. g3 {[%emt 0:00:00]} Nf6 {[%emt 0:00:00]} 3. Bg2 {[%emt 0:00:10]} d5 {[%emt 0:00:18]} 4. cxd5 {[%emt 0:00:25]} Nxd5 {[%emt 0:00:11]} 5. Nc3 {[%emt 0:00:07]} Nb6 {[%emt 0:00:37]} 6. Nf3 {[%emt 0:00:41]} Nc6 {[%emt 0:00:31]} 7. O-O {[%emt 0:00:45]} Be7 {[%emt 0:01:20]} 8. d3 {[%emt 0:01:03]} O-O {[%emt 0:00:49]} 9. Be3 {[%emt 0:00:56]} Re8 {[%emt 0:04:54]} 10. a3 {[%emt 0:03:44]} Bf8 {[%emt 0:06:02]} 11. Ne4 {[%emt 0:06:53]} Nd4 {[%emt 0:05:58]} 12. Rc1 {[%emt 0:04:42]} a5 {[%emt 0:13:21]} 13. Nc5 {[%emt 0:11:11]} c6 {[%emt 0:04:03]} 14. Bxd4 {[%emt 0:06:01]} exd4 {[%emt 0:00:32]} 15. Nb3 {[%emt 0:00:14]} Na4 {[%emt 0:27:23]} 16. Nbxd4 {[%emt 0:12:36]} Nxb2 {[%emt 0:09:43]} 17. Qb3 {[%emt 0:01:56]} Qf6 {[%emt 0:04:45]} 18. Rc2 {[%emt 0:03:39]} Nxd3 {[%emt 0:14:28]} 19. Qxd3 {[%emt 0:02:27]} c5 {[%emt 0:01:17]} 20. Qb5 {[%emt 0:06:50]} Bg4 {[%emt 0:01:33]} 21. Nb3 {[%emt 0:02:17]} b6 {[%emt 0:00:22]} 22. Rd1 {[%emt 0:09:25]} Rab8 {[%emt 0:01:24]} 23. Nbd2 {[%emt 0:04:55]} Bf5 {[%emt 0:00:29]} 24. Rcc1 {[%emt 0:00:28]} Qe6 {[%emt 0:00:43]} 25. Nc4 {[%emt 0:03:27]} Qf6 {[%emt 0:01:02]} 26. Rd2 {[%emt 0:01:33]} Be7 {[%emt 0:00:32]} 27. Nfe5 {[%emt 0:01:27]} Qh6 {[%emt 0:00:26]} 28. Nc6 {[%emt 0:02:09]} Rbc8 {[%emt 0:00:17]} 29. Nxe7+ {[%emt 0:00:50]} Rxe7 {[%emt 0:00:02]} 30. Qxb6 {[%emt 0:02:08]} Qg5 {[%emt 0:01:21]} 31. Qd8+ {[%emt 0:01:38]} 1-0